[Event "Titled Tuesday Blitz July 11 Late 2023"]
[White "FromTexas54"]
[Black "Leitao, Rafael"]
[BlackFideId "2101246"]
[WhiteElo "2567"]
[BlackElo "2752"]
[Result "0-1"]
[Round "7"]
[TimeControl "180+2"]
[Date "2023.07.11"]
[WhiteClock "0:00:21"]
[BlackClock "0:00:58"]
[Board "35"]

1. d4 {[%clk 0:02:59]}  Nf6 {[%clk 0:02:59]} 2. c4 {[%clk 0:02:59]}  g6 {[%clk 0:03:00]} 3. Nc3 {[%clk 0:03:00]}  Bg7 {[%clk 0:03:00]} 4. e4 {[%clk 0:03:00]}  d6 {[%clk 0:03:01]} 5. Nf3 {[%clk 0:03:01]}  O-O {[%clk 0:03:01]} 6. Be2 {[%clk 0:03:02]}  Nbd7 {[%clk 0:03:02]} 7. O-O {[%clk 0:03:03]}  e5 {[%clk 0:03:02]} 8. Be3 {[%clk 0:03:02]}  Qe7 {[%clk 0:03:01]} 9. d5 {[%clk 0:03:02]}  c5 {[%clk 0:03:01]} 10. Ne1 {[%clk 0:03:01]}  Kh8 {[%clk 0:02:56]} 11. Nd3 {[%clk 0:03:00]}  Ng8 {[%clk 0:02:57]} 12. a3 {[%clk 0:02:57]}  Bh6 {[%clk 0:02:49]} 13. Bxh6 {[%clk 0:02:38]}  Nxh6 {[%clk 0:02:50]} 14. b4 {[%clk 0:02:38]}  b6 {[%clk 0:02:49]} 15. Qd2 {[%clk 0:02:32]}  Ng8 {[%clk 0:02:39]} 16. Bg4 {[%clk 0:02:24]}  f5 {[%clk 0:02:36]} 17. exf5 {[%clk 0:02:23]}  gxf5 {[%clk 0:02:35]} 18. Bh3 {[%clk 0:02:24]}  f4 {[%clk 0:01:53]} 19. Bxd7 {[%clk 0:02:06]}  Bxd7 {[%clk 0:01:51]} 20. f3 {[%clk 0:02:07]}  Nf6 {[%clk 0:01:50]} 21. bxc5 {[%clk 0:02:04]}  bxc5 {[%clk 0:01:49]} 22. Nf2 {[%clk 0:02:04]}  Bf5 {[%clk 0:01:47]} 23. Rfe1 {[%clk 0:02:03]}  Rg8 {[%clk 0:01:44]} 24. Qxf4 {[%clk 0:02:00]}  Qg7 {[%clk 0:01:28]} 25. Qg3 {[%clk 0:02:00]}  Qh6 {[%clk 0:01:14]} 26. Ng4 {[%clk 0:01:58]}  Bxg4 {[%clk 0:01:14]} 27. fxg4 {[%clk 0:01:58]}  Rxg4 {[%clk 0:01:15]} 28. Qf3 {[%clk 0:01:53]}  Rag8 {[%clk 0:01:10]} 29. Ra2 {[%clk 0:01:53]}  Rxc4 {[%clk 0:01:05]} 30. Rf2 {[%clk 0:01:47]}  Ng4 {[%clk 0:01:01]} 31. h3 {[%clk 0:00:42]}  Nxf2 {[%clk 0:00:58]} 32. Kxf2 {[%clk 0:00:21]}  Rf4 {[%clk 0:00:58]} 0-1


[Site "https://www.chess.com"]

[Event "Titled Tuesday Blitz July 11 Late 2023"]
[White "Fantastic_Power"]
[Black "Keleberda, Tymur"]
[BlackFideId "14174294"]
[WhiteElo "2742"]
[BlackElo "2554"]
[Result "1-0"]
[Round "7"]
[TimeControl "180+2"]
[Date "2023.07.11"]
[WhiteClock "0:00:10"]
[BlackClock "0:00:07"]
[Board "36"]

1. e4 {[%clk 0:03:00]}  c5 {[%clk 0:02:59]} 2. Nf3 {[%clk 0:03:00]}  d6 {[%clk 0:03:00]} 3. d4 {[%clk 0:03:00]}  cxd4 {[%clk 0:03:01]} 4. Nxd4 {[%clk 0:03:01]}  Nf6 {[%clk 0:03:00]} 5. Nc3 {[%clk 0:03:01]}  a6 {[%clk 0:03:01]} 6. h4 {[%clk 0:02:56]}  e5 {[%clk 0:02:56]} 7. Nb3 {[%clk 0:02:56]}  Be7 {[%clk 0:02:52]} 8. Bg5 {[%clk 0:02:55]}  Nbd7 {[%clk 0:02:51]} 9. Qd2 {[%clk 0:02:49]}  h6 {[%clk 0:02:50]} 10. Bxf6 {[%clk 0:02:49]}  Nxf6 {[%clk 0:02:51]} 11. O-O-O {[%clk 0:02:33]}  Be6 {[%clk 0:02:41]} 12. Kb1 {[%clk 0:02:28]}  Qc7 {[%clk 0:02:39]} 13. f4 {[%clk 0:02:23]}  b5 {[%clk 0:02:06]} 14. f5 {[%clk 0:02:16]}  Bd7 {[%clk 0:02:06]} 15. Bd3 {[%clk 0:02:12]}  Bc6 {[%clk 0:02:00]} 16. Nd5 {[%clk 0:01:57]}  Bxd5 {[%clk 0:01:26]} 17. exd5 {[%clk 0:01:58]}  Bd8 {[%clk 0:01:02]} 18. Rhg1 {[%clk 0:01:53]}  h5 {[%clk 0:00:49]} 19. Qe2 {[%clk 0:01:43]}  Qb6 {[%clk 0:00:43]} 20. Nd2 {[%clk 0:01:41]}  Ng4 {[%clk 0:00:33]} 21. Ne4 {[%clk 0:01:34]}  Bxh4 {[%clk 0:00:29]} 22. Rh1 {[%clk 0:01:32]}  Bd8 {[%clk 0:00:27]} 23. Rh3 {[%clk 0:01:15]}  Kd7 {[%clk 0:00:26]} 24. Rdh1 {[%clk 0:01:15]}  g6 {[%clk 0:00:24]} 25. Rf1 {[%clk 0:00:52]}  Rc8 {[%clk 0:00:24]} 26. Qf3 {[%clk 0:00:44]}  Be7 {[%clk 0:00:20]} 27. f6 {[%clk 0:00:43]}  Bd8 {[%clk 0:00:19]} 28. Ng5 {[%clk 0:00:42]}  Rf8 {[%clk 0:00:16]} 29. Nh7 {[%clk 0:00:42]}  Rh8 {[%clk 0:00:16]} 30. Ng5 {[%clk 0:00:43]}  Rf8 {[%clk 0:00:16]} 31. Bf5+ {[%clk 0:00:31]}  Kc7 {[%clk 0:00:16]} 32. Qc3+ {[%clk 0:00:24]}  Qc5 {[%clk 0:00:16]} 33. Qxc5+ {[%clk 0:00:18]}  dxc5 {[%clk 0:00:17]} 34. d6+ {[%clk 0:00:17]}  Kb7 {[%clk 0:00:17]} 35. Bxc8+ {[%clk 0:00:18]}  Kxc8 {[%clk 0:00:18]} 36. Nh7 {[%clk 0:00:13]}  Re8 {[%clk 0:00:18]} 37. Ng5 {[%clk 0:00:14]}  Bxf6 {[%clk 0:00:14]} 38. Nxf7 {[%clk 0:00:14]}  e4 {[%clk 0:00:14]} 39. Nh6 {[%clk 0:00:08]}  e3 {[%clk 0:00:12]} 40. Nxg4 {[%clk 0:00:04]}  e2 {[%clk 0:00:12]} 41. Re1 {[%clk 0:00:05]}  hxg4 {[%clk 0:00:12]} 42. Rhh1 {[%clk 0:00:05]}  Bh4 {[%clk 0:00:12]} 43. Rxh4 {[%clk 0:00:04]}  Kd7 {[%clk 0:00:11]} 44. Kc1 {[%clk 0:00:05]}  Kxd6 {[%clk 0:00:12]} 45. Kd2 {[%clk 0:00:05]}  c4 {[%clk 0:00:09]} 46. Rxg4 {[%clk 0:00:06]}  Kc5 {[%clk 0:00:09]} 47. Rxe2 {[%clk 0:00:06]}  Rd8+ {[%clk 0:00:09]} 48. Kc1 {[%clk 0:00:06]}  Rd6 {[%clk 0:00:08]} 49. Rg5+ {[%clk 0:00:06]}  Kb4 {[%clk 0:00:08]} 50. c3+ {[%clk 0:00:07]}  Ka4 {[%clk 0:00:08]} 51. Rge5 {[%clk 0:00:07]}  Rf6 {[%clk 0:00:08]} 52. Re6 {[%clk 0:00:08]}  Rf1+ {[%clk 0:00:08]} 53. Kc2 {[%clk 0:00:09]}  a5 {[%clk 0:00:07]} 54. Ra6 {[%clk 0:00:09]}  g5 {[%clk 0:00:07]} 55. b3+ {[%clk 0:00:09]}  cxb3+ {[%clk 0:00:07]} 56. axb3+ {[%clk 0:00:10]}  Ka3 {[%clk 0:00:07]} 57. Rxa5# {[%clk 0:00:10]} 1-0


[Site "https://www.chess.com"]

[Event "Titled Tuesday Blitz July 11 Late 2023"]
[White "Haydon, David L"]
[Black "Michalczak, Thomas"]
[WhiteFideId "415405"]
[BlackFideId "4622634"]
[WhiteElo "2721"]
[BlackElo "2562"]
[Result "1-0"]
[Round "7"]
[TimeControl "180+2"]
[Date "2023.07.11"]
[WhiteClock "0:02:02"]
[BlackClock "0:01:23"]
[Board "37"]

1. d4 {[%clk 0:03:00]}  Nf6 {[%clk 0:02:59]} 2. Nf3 {[%clk 0:03:00]}  d5 {[%clk 0:02:59]} 3. c4 {[%clk 0:03:00]}  e6 {[%clk 0:02:59]} 4. Nc3 {[%clk 0:03:00]}  Nbd7 {[%clk 0:02:58]} 5. Bf4 {[%clk 0:02:59]}  Bb4 {[%clk 0:02:49]} 6. Qc2 {[%clk 0:02:55]}  c5 {[%clk 0:02:49]} 7. cxd5 {[%clk 0:02:52]}  Nxd5 {[%clk 0:02:48]} 8. Bd2 {[%clk 0:02:52]}  N5f6 {[%clk 0:02:34]} 9. e3 {[%clk 0:02:47]}  cxd4 {[%clk 0:02:28]} 10. Nxd4 {[%clk 0:02:46]}  O-O {[%clk 0:02:20]} 11. Be2 {[%clk 0:02:46]}  Ne5 {[%clk 0:02:15]} 12. O-O {[%clk 0:02:44]}  Bd7 {[%clk 0:02:15]} 13. Rad1 {[%clk 0:02:43]}  Rc8 {[%clk 0:02:13]} 14. Qb3 {[%clk 0:02:39]}  Qe7 {[%clk 0:02:09]} 15. a3 {[%clk 0:02:27]}  Bxc3 {[%clk 0:01:56]} 16. Bxc3 {[%clk 0:02:26]}  Nd5 {[%clk 0:01:57]} 17. Be1 {[%clk 0:02:21]}  Nb6 {[%clk 0:01:50]} 18. Bb4 {[%clk 0:02:19]}  Qf6 {[%clk 0:01:41]} 19. Bxf8 {[%clk 0:02:16]}  Ba4 {[%clk 0:01:41]} 20. Qb4 {[%clk 0:02:14]}  Bxd1 {[%clk 0:01:40]} 21. Be7 {[%clk 0:02:14]}  Nd5 {[%clk 0:01:32]} 22. Bxf6 {[%clk 0:02:13]}  Nxb4 {[%clk 0:01:30]} 23. Bxe5 {[%clk 0:02:03]}  Bxe2 {[%clk 0:01:30]} 24. Nxe2 {[%clk 0:02:03]}  Nd3 {[%clk 0:01:23]} 25. Bc3 {[%clk 0:02:02]} 1-0


[Site "https://www.chess.com"]

[Event "Titled Tuesday Blitz July 11 Late 2023"]
[White "Ismagilov, Damir"]
[Black "Jaracz, Pawel"]
[WhiteFideId "34199982"]
[BlackFideId "1102222"]
[WhiteElo "2550"]
[BlackElo "2715"]
[Result "0-1"]
[Round "7"]
[TimeControl "180+2"]
[Date "2023.07.11"]
[WhiteClock "0:00:00"]
[BlackClock "0:01:00"]
[Board "40"]

1. d4 {[%clk 0:03:00]}  d5 {[%clk 0:02:59]} 2. Bf4 {[%clk 0:03:00]}  c5 {[%clk 0:02:58]} 3. e3 {[%clk 0:03:01]}  Nc6 {[%clk 0:02:57]} 4. c3 {[%clk 0:03:01]}  Qb6 {[%clk 0:02:55]} 5. Qb3 {[%clk 0:03:01]}  c4 {[%clk 0:02:55]} 6. Qc2 {[%clk 0:03:01]}  g6 {[%clk 0:02:55]} 7. e4 {[%clk 0:02:55]}  dxe4 {[%clk 0:02:52]} 8. Nd2 {[%clk 0:02:55]}  Nf6 {[%clk 0:02:23]} 9. Bxc4 {[%clk 0:02:46]}  Na5 {[%clk 0:02:12]} 10. Ne2 {[%clk 0:02:31]}  Bg7 {[%clk 0:02:08]} 11. O-O {[%clk 0:02:22]}  Bf5 {[%clk 0:02:06]} 12. Be3 {[%clk 0:02:15]}  Rc8 {[%clk 0:02:02]} 13. d5 {[%clk 0:02:06]}  Qc7 {[%clk 0:01:53]} 14. Bf4 {[%clk 0:01:46]}  Qd7 {[%clk 0:01:51]} 15. Bb3 {[%clk 0:01:03]}  e3 {[%clk 0:01:49]} 16. Qd1 {[%clk 0:01:00]}  exd2 {[%clk 0:01:47]} 17. Nd4 {[%clk 0:00:59]}  Nxb3 {[%clk 0:01:42]} 18. axb3 {[%clk 0:00:56]}  Nxd5 {[%clk 0:01:41]} 19. Qxd2 {[%clk 0:00:46]}  Nxf4 {[%clk 0:01:40]} 20. Qxf4 {[%clk 0:00:45]}  Bxd4 {[%clk 0:01:39]} 21. cxd4 {[%clk 0:00:43]}  a6 {[%clk 0:01:38]} 22. h4 {[%clk 0:00:42]}  Qd6 {[%clk 0:01:34]} 23. Qg5 {[%clk 0:00:38]}  Qf6 {[%clk 0:01:34]} 24. Qf4 {[%clk 0:00:37]}  Be6 {[%clk 0:01:31]} 25. Qe3 {[%clk 0:00:34]}  O-O {[%clk 0:01:30]} 26. h5 {[%clk 0:00:34]}  Rfd8 {[%clk 0:01:30]} 27. Rad1 {[%clk 0:00:32]}  Rd5 {[%clk 0:01:26]} 28. hxg6 {[%clk 0:00:24]}  hxg6 {[%clk 0:01:26]} 29. Rd2 {[%clk 0:00:22]}  Kg7 {[%clk 0:01:24]} 30. f3 {[%clk 0:00:20]}  Rh8 {[%clk 0:01:20]} 31. Kf2 {[%clk 0:00:19]}  Qh4+ {[%clk 0:01:17]} 32. Ke2 {[%clk 0:00:14]}  Qg3 {[%clk 0:01:17]} 33. Rf2 {[%clk 0:00:13]}  Bd7 {[%clk 0:01:13]} 34. Qe4 {[%clk 0:00:12]}  Rd6 {[%clk 0:01:11]} 35. Kd1 {[%clk 0:00:11]}  Rh5 {[%clk 0:01:08]} 36. Qxe7 {[%clk 0:00:08]}  Rh1+ {[%clk 0:01:03]} 37. Kc2 {[%clk 0:00:08]}  Rc6+ {[%clk 0:01:02]} 38. Kd3 {[%clk 0:00:07]}  Bf5+ {[%clk 0:01:02]} 39. Ke3 {[%clk 0:00:03]}  Re6+ {[%clk 0:01:01]} 40. Qxe6 {[%clk 0:00:03]}  Bxe6 {[%clk 0:01:01]} 41. d5 {[%clk 0:00:04]}  Qe5+ {[%clk 0:01:01]} 42. Kd3 {[%clk 0:00:04]}  Bf5+ {[%clk 0:01:00]} 43. Kc4 {[%clk 0:00:04]}  Rc1+ {[%clk 0:01:01]} 44. Kb4 {[%clk 0:00:00]}  Qd6+ {[%clk 0:01:00]} 0-1


[Site "https://www.chess.com"]

[Event "Titled Tuesday Blitz July 11 Late 2023"]
[White "Rastbod, Ali"]
[Black "Yelisieiev, Yevhenii"]
[WhiteFideId "12567477"]
[BlackFideId "14139642"]
[WhiteElo "2694"]
[BlackElo "2542"]
[Result "0-1"]
[Round "7"]
[TimeControl "180+2"]
[Date "2023.07.11"]
[WhiteClock "0:00:04"]
[BlackClock "0:01:29"]
[Board "41"]

1. Nf3 {[%clk 0:02:53]}  d6 {[%clk 0:03:00]} 2. e4 {[%clk 0:02:52]}  Nf6 {[%clk 0:03:01]} 3. Nc3 {[%clk 0:02:52]}  e5 {[%clk 0:03:00]} 4. d4 {[%clk 0:02:52]}  Nbd7 {[%clk 0:03:00]} 5. Bc4 {[%clk 0:02:51]}  Be7 {[%clk 0:03:00]} 6. O-O {[%clk 0:02:52]}  O-O {[%clk 0:03:00]} 7. Re1 {[%clk 0:02:51]}  c6 {[%clk 0:03:00]} 8. a4 {[%clk 0:02:51]}  a5 {[%clk 0:03:01]} 9. h3 {[%clk 0:02:51]}  Nb6 {[%clk 0:03:01]} 10. Bf1 {[%clk 0:02:48]}  exd4 {[%clk 0:03:01]} 11. Nxd4 {[%clk 0:02:49]}  d5 {[%clk 0:03:02]} 12. e5 {[%clk 0:02:49]}  Ne8 {[%clk 0:03:02]} 13. Qh5 {[%clk 0:02:42]}  g6 {[%clk 0:03:01]} 14. Qh6 {[%clk 0:02:35]}  Ng7 {[%clk 0:03:01]} 15. Bf4 {[%clk 0:02:30]}  c5 {[%clk 0:02:52]} 16. Ndb5 {[%clk 0:02:23]}  Nf5 {[%clk 0:02:49]} 17. Rad1 {[%clk 0:02:02]}  Nxh6 {[%clk 0:02:47]} 18. Bxh6 {[%clk 0:02:03]}  Be6 {[%clk 0:02:46]} 19. Bxf8 {[%clk 0:01:59]}  Bxf8 {[%clk 0:02:45]} 20. g3 {[%clk 0:01:41]}  Bg7 {[%clk 0:02:24]} 21. f4 {[%clk 0:01:41]}  g5 {[%clk 0:02:23]} 22. Bg2 {[%clk 0:01:27]}  gxf4 {[%clk 0:02:22]} 23. gxf4 {[%clk 0:01:28]}  Qh4 {[%clk 0:02:21]} 24. Rf1 {[%clk 0:01:23]}  Bxh3 {[%clk 0:02:13]} 25. Bxh3 {[%clk 0:01:24]}  Qxh3 {[%clk 0:02:13]} 26. Rd3 {[%clk 0:01:24]}  Qf5 {[%clk 0:02:06]} 27. Nd6 {[%clk 0:01:13]}  Qd7 {[%clk 0:02:01]} 28. Rg3 {[%clk 0:01:01]}  Kh8 {[%clk 0:02:00]} 29. Rf2 {[%clk 0:00:58]}  Bf8 {[%clk 0:01:50]} 30. Ndb5 {[%clk 0:00:39]}  Bh6 {[%clk 0:01:45]} 31. Nd6 {[%clk 0:00:28]}  Rg8 {[%clk 0:01:43]} 32. Kh2 {[%clk 0:00:23]}  Rxg3 {[%clk 0:01:42]} 33. Kxg3 {[%clk 0:00:24]}  Bf8 {[%clk 0:01:37]} 34. Ncb5 {[%clk 0:00:19]}  Nxa4 {[%clk 0:01:32]} 35. f5 {[%clk 0:00:15]}  f6 {[%clk 0:01:29]} 36. e6 {[%clk 0:00:08]}  Bxd6+ {[%clk 0:01:29]} 37. Kg4 {[%clk 0:00:04]}  Qxb5 {[%clk 0:01:29]} 0-1


[Site "https://www.chess.com"]

[Event "Titled Tuesday Blitz July 11 Late 2023"]
[White "Goryachkina, Aleksandra"]
[Black "Chor, Kevin"]
[WhiteFideId "4147103"]
[BlackFideId "2090740"]
[WhiteElo "2683"]
[BlackElo "2538"]
[Result "0-1"]
[Round "7"]
[TimeControl "180+2"]
[Date "2023.07.11"]
[WhiteClock "0:00:00"]
[BlackClock "0:00:05"]
[Board "43"]

1. e4 {[%clk 0:02:59]}  c5 {[%clk 0:02:53]} 2. Nf3 {[%clk 0:03:00]}  g6 {[%clk 0:02:53]} 3. g3 {[%clk 0:02:58]}  Bg7 {[%clk 0:02:53]} 4. Bg2 {[%clk 0:02:58]}  Nc6 {[%clk 0:02:51]} 5. O-O {[%clk 0:02:58]}  Nf6 {[%clk 0:02:51]} 6. d3 {[%clk 0:02:58]}  O-O {[%clk 0:02:51]} 7. Nbd2 {[%clk 0:02:56]}  Rb8 {[%clk 0:02:48]} 8. a4 {[%clk 0:02:55]}  d6 {[%clk 0:02:47]} 9. Re1 {[%clk 0:02:55]}  a6 {[%clk 0:02:44]} 10. Nc4 {[%clk 0:02:41]}  Bg4 {[%clk 0:02:33]} 11. Ne3 {[%clk 0:02:39]}  Bxf3 {[%clk 0:02:32]} 12. Bxf3 {[%clk 0:02:40]}  Nd7 {[%clk 0:02:25]} 13. Bg2 {[%clk 0:02:40]}  e6 {[%clk 0:02:18]} 14. Nc4 {[%clk 0:02:29]}  Qe7 {[%clk 0:02:14]} 15. a5 {[%clk 0:02:24]}  Nde5 {[%clk 0:02:11]} 16. Nxe5 {[%clk 0:01:58]}  Bxe5 {[%clk 0:02:05]} 17. c3 {[%clk 0:01:55]}  Qc7 {[%clk 0:01:55]} 18. Qa4 {[%clk 0:01:54]}  Rbd8 {[%clk 0:01:42]} 19. Be3 {[%clk 0:01:53]}  Bg7 {[%clk 0:01:35]} 20. d4 {[%clk 0:01:48]}  cxd4 {[%clk 0:01:36]} 21. cxd4 {[%clk 0:01:48]}  e5 {[%clk 0:01:29]} 22. dxe5 {[%clk 0:01:39]}  dxe5 {[%clk 0:01:30]} 23. Bb6 {[%clk 0:01:38]}  Qe7 {[%clk 0:01:20]} 24. Bxd8 {[%clk 0:01:38]}  Rxd8 {[%clk 0:01:21]} 25. Rac1 {[%clk 0:01:34]}  Bh6 {[%clk 0:01:08]} 26. Rc4 {[%clk 0:01:14]}  Rd2 {[%clk 0:01:05]} 27. Rc2 {[%clk 0:00:54]}  Rd4 {[%clk 0:01:05]} 28. Qa2 {[%clk 0:00:46]}  Qb4 {[%clk 0:00:51]} 29. Rf1 {[%clk 0:00:39]}  Qd6 {[%clk 0:00:40]} 30. h4 {[%clk 0:00:31]}  Kg7 {[%clk 0:00:37]} 31. Qa1 {[%clk 0:00:17]}  Nb4 {[%clk 0:00:32]} 32. Re2 {[%clk 0:00:17]}  Qe6 {[%clk 0:00:22]} 33. Qa3 {[%clk 0:00:12]}  Nc6 {[%clk 0:00:15]} 34. Rc2 {[%clk 0:00:09]}  Bd2 {[%clk 0:00:14]} 35. Kh2 {[%clk 0:00:03]}  Bb4 {[%clk 0:00:13]} 36. Qf3 {[%clk 0:00:02]}  Rd7 {[%clk 0:00:11]} 37. Bh3 {[%clk 0:00:02]}  Nd4 {[%clk 0:00:11]} 38. Qg2 {[%clk 0:00:02]}  Qd6 {[%clk 0:00:07]} 39. Rc4 {[%clk 0:00:02]}  Re7 {[%clk 0:00:07]} 40. Rd1 {[%clk 0:00:01]}  Bxa5 {[%clk 0:00:07]} 41. f4 {[%clk 0:00:01]}  Bb6 {[%clk 0:00:06]} 42. f5 {[%clk 0:00:00]}  Qf6 {[%clk 0:00:05]} 0-1


[Site "https://www.chess.com"]

[Event "Titled Tuesday Blitz July 11 Late 2023"]
[White "Shuvalova, Polina"]
[Black "ArchibaldCerveza29"]
[WhiteFideId "24171760"]
[WhiteElo "2669"]
[BlackElo "2532"]
[Result "1-0"]
[Round "7"]
[TimeControl "180+2"]
[Date "2023.07.11"]
[WhiteClock "0:00:08"]
[BlackClock "0:00:00"]
[Board "44"]

1. e4 {[%clk 0:03:00]}  e5 {[%clk 0:02:58]} 2. Nf3 {[%clk 0:02:59]}  Nc6 {[%clk 0:02:57]} 3. Nc3 {[%clk 0:03:00]}  Nf6 {[%clk 0:02:50]} 4. Bb5 {[%clk 0:03:00]}  Nd4 {[%clk 0:02:49]} 5. Bc4 {[%clk 0:02:59]}  c6 {[%clk 0:02:48]} 6. d3 {[%clk 0:02:53]}  d6 {[%clk 0:02:40]} 7. Nxd4 {[%clk 0:02:51]}  exd4 {[%clk 0:02:41]} 8. Ne2 {[%clk 0:02:51]}  d5 {[%clk 0:02:27]} 9. exd5 {[%clk 0:02:49]}  Nxd5 {[%clk 0:02:28]} 10. Nxd4 {[%clk 0:02:32]}  Bc5 {[%clk 0:02:26]} 11. Qe2+ {[%clk 0:02:27]}  Kd7 {[%clk 0:01:51]} 12. O-O {[%clk 0:02:26]}  Bxd4 {[%clk 0:01:34]} 13. Qg4+ {[%clk 0:02:25]}  Kc7 {[%clk 0:01:35]} 14. Qxd4 {[%clk 0:02:26]}  Be6 {[%clk 0:01:36]} 15. Qxg7 {[%clk 0:02:11]}  Rg8 {[%clk 0:01:35]} 16. Qe5+ {[%clk 0:02:11]}  Kc8 {[%clk 0:01:34]} 17. Bf4 {[%clk 0:01:59]}  Nxf4 {[%clk 0:01:07]} 18. Qxf4 {[%clk 0:01:59]}  Bh3 {[%clk 0:01:02]} 19. g3 {[%clk 0:01:49]}  Bxf1 {[%clk 0:01:02]} 20. Rxf1 {[%clk 0:01:49]}  Qd7 {[%clk 0:00:57]} 21. Re1 {[%clk 0:01:39]}  Re8 {[%clk 0:00:56]} 22. Rxe8+ {[%clk 0:01:38]}  Qxe8 {[%clk 0:00:57]} 23. Bxf7 {[%clk 0:01:38]}  Qe7 {[%clk 0:00:54]} 24. Be6+ {[%clk 0:01:19]}  Kd8 {[%clk 0:00:42]} 25. Qe5 {[%clk 0:01:15]}  a5 {[%clk 0:00:25]} 26. a4 {[%clk 0:01:06]}  Ra6 {[%clk 0:00:24]} 27. Qh8+ {[%clk 0:00:46]}  Qe8 {[%clk 0:00:20]} 28. Qd4+ {[%clk 0:00:46]}  Kc7 {[%clk 0:00:18]} 29. Bg4 {[%clk 0:00:43]}  c5 {[%clk 0:00:18]} 30. Qxc5+ {[%clk 0:00:41]}  Kb8 {[%clk 0:00:17]} 31. Bf3 {[%clk 0:00:38]}  Qxa4 {[%clk 0:00:16]} 32. Kg2 {[%clk 0:00:35]}  Qb4 {[%clk 0:00:15]} 33. Qe5+ {[%clk 0:00:33]}  Ka7 {[%clk 0:00:15]} 34. b3 {[%clk 0:00:33]}  Rd6 {[%clk 0:00:13]} 35. h4 {[%clk 0:00:30]}  Qb6 {[%clk 0:00:13]} 36. h5 {[%clk 0:00:27]}  Re6 {[%clk 0:00:13]} 37. Qf5 {[%clk 0:00:27]}  h6 {[%clk 0:00:13]} 38. Qd5 {[%clk 0:00:24]}  Rf6 {[%clk 0:00:13]} 39. Qe5 {[%clk 0:00:20]}  Re6 {[%clk 0:00:11]} 40. Qd5 {[%clk 0:00:18]}  Re1 {[%clk 0:00:11]} 41. d4 {[%clk 0:00:17]}  Rc1 {[%clk 0:00:11]} 42. Be4 {[%clk 0:00:15]}  Rd1 {[%clk 0:00:10]} 43. Bd3 {[%clk 0:00:15]}  Rd2 {[%clk 0:00:09]} 44. Qe4 {[%clk 0:00:14]}  Qf6 {[%clk 0:00:09]} 45. Qe3 {[%clk 0:00:13]}  Rd1 {[%clk 0:00:09]} 46. d5+ {[%clk 0:00:13]}  Kb8 {[%clk 0:00:08]} 47. Qe8+ {[%clk 0:00:11]}  Ka7 {[%clk 0:00:07]} 48. Qe3+ {[%clk 0:00:11]}  Kb8 {[%clk 0:00:07]} 49. Be4 {[%clk 0:00:08]}  Qd6 {[%clk 0:00:02]} 50. Bf3 {[%clk 0:00:08]}  Ra1 {[%clk 0:00:02]} 51. Qe8+ {[%clk 0:00:08]}  Ka7 {[%clk 0:00:02]} 52. Qe3+ {[%clk 0:00:08]}  Kb8 {[%clk 0:00:02]} 53. c4 {[%clk 0:00:09]}  Qf6 {[%clk 0:00:02]} 54. c5 {[%clk 0:00:09]}  Ka7 {[%clk 0:00:02]} 55. c6+ {[%clk 0:00:09]}  Kb8 {[%clk 0:00:03]} 56. Qe8+ {[%clk 0:00:08]}  Ka7 {[%clk 0:00:00]} 57. Qd7 {[%clk 0:00:08]} 1-0


[Site "https://www.chess.com"]

[Event "Titled Tuesday Blitz July 11 Late 2023"]
[White "Taboas Rodriguez, Daniel"]
[Black "benny_aizenberg"]
[WhiteFideId "2208466"]
[WhiteElo "2521"]
[BlackElo "2649"]
[Result "0-1"]
[Round "7"]
[TimeControl "180+2"]
[Date "2023.07.11"]
[WhiteClock "0:00:02"]
[BlackClock "0:00:33"]
[Board "47"]

1. d4 {[%clk 0:03:00]}  f5 {[%clk 0:02:59]} 2. Bg5 {[%clk 0:02:59]}  g6 {[%clk 0:02:58]} 3. Nd2 {[%clk 0:02:57]}  Bg7 {[%clk 0:02:58]} 4. e4 {[%clk 0:02:58]}  d6 {[%clk 0:02:57]} 5. Ngf3 {[%clk 0:02:56]}  Nc6 {[%clk 0:02:52]} 6. c3 {[%clk 0:02:54]}  h6 {[%clk 0:02:49]} 7. Be3 {[%clk 0:02:54]}  e5 {[%clk 0:02:48]} 8. dxe5 {[%clk 0:02:42]}  dxe5 {[%clk 0:02:48]} 9. Nc4 {[%clk 0:02:35]}  Qxd1+ {[%clk 0:02:42]} 10. Rxd1 {[%clk 0:02:36]}  fxe4 {[%clk 0:02:43]} 11. Nfd2 {[%clk 0:02:31]}  Nf6 {[%clk 0:02:43]} 12. g3 {[%clk 0:02:18]}  Bg4 {[%clk 0:02:40]} 13. Be2 {[%clk 0:02:16]}  Be6 {[%clk 0:02:34]} 14. O-O {[%clk 0:02:09]}  O-O-O {[%clk 0:02:33]} 15. a4 {[%clk 0:02:07]}  a6 {[%clk 0:02:29]} 16. b4 {[%clk 0:02:01]}  Nd5 {[%clk 0:02:15]} 17. Nb1 {[%clk 0:01:30]}  h5 {[%clk 0:02:00]} 18. Ncd2 {[%clk 0:01:14]}  Bf5 {[%clk 0:01:54]} 19. Rfe1 {[%clk 0:01:04]}  Bh6 {[%clk 0:01:35]} 20. Bxh6 {[%clk 0:01:00]}  Rxh6 {[%clk 0:01:36]} 21. Bf1 {[%clk 0:01:00]}  e3 {[%clk 0:01:36]} 22. fxe3 {[%clk 0:00:58]}  Bc2 {[%clk 0:01:36]} 23. Rc1 {[%clk 0:00:56]}  Bxa4 {[%clk 0:01:35]} 24. Bg2 {[%clk 0:00:40]}  Rhh8 {[%clk 0:01:26]} 25. Nf3 {[%clk 0:00:31]}  Nf6 {[%clk 0:01:19]} 26. Ng5 {[%clk 0:00:29]}  Bb3 {[%clk 0:01:09]} 27. Rf1 {[%clk 0:00:20]}  Ng4 {[%clk 0:01:07]} 28. Rce1 {[%clk 0:00:20]}  Rd3 {[%clk 0:00:46]} 29. Nf7 {[%clk 0:00:14]}  Bxf7 {[%clk 0:00:43]} 30. Rxf7 {[%clk 0:00:15]}  Rxe3 {[%clk 0:00:36]} 31. Rd1 {[%clk 0:00:13]}  Rd8 {[%clk 0:00:34]} 32. Rxd8+ {[%clk 0:00:12]}  Nxd8 {[%clk 0:00:34]} 33. Nd2 {[%clk 0:00:02]}  Nxf7 {[%clk 0:00:33]} 0-1


[Site "https://www.chess.com"]

[Event "Titled Tuesday Blitz July 11 Late 2023"]
[White "Rostomyan, Mikayel"]
[Black "Mindhunter08"]
[WhiteFideId "13313754"]
[WhiteElo "2640"]
[BlackElo "2517"]
[Result "1-0"]
[Round "7"]
[TimeControl "180+2"]
[Date "2023.07.11"]
[WhiteClock "0:01:02"]
[BlackClock "0:00:00"]
[Board "48"]

1. e4 {[%clk 0:03:00]}  e5 {[%clk 0:02:59]} 2. Nf3 {[%clk 0:03:00]}  Nc6 {[%clk 0:02:58]} 3. Nc3 {[%clk 0:03:01]}  Nf6 {[%clk 0:02:58]} 4. Nxe5 {[%clk 0:03:01]}  Nxe5 {[%clk 0:02:58]} 5. d4 {[%clk 0:03:00]}  Ng6 {[%clk 0:02:48]} 6. e5 {[%clk 0:03:00]}  Ng8 {[%clk 0:02:47]} 7. Bc4 {[%clk 0:03:00]}  d6 {[%clk 0:02:21]} 8. Qf3 {[%clk 0:02:58]}  Be6 {[%clk 0:02:14]} 9. Qxb7 {[%clk 0:02:32]}  Rb8 {[%clk 0:01:50]} 10. Bb5+ {[%clk 0:02:27]}  Ke7 {[%clk 0:01:35]} 11. exd6+ {[%clk 0:02:25]}  Kxd6 {[%clk 0:01:27]} 12. Qxa7 {[%clk 0:02:13]}  Ke7 {[%clk 0:01:03]} 13. O-O {[%clk 0:02:12]}  Nf6 {[%clk 0:00:57]} 14. Bg5 {[%clk 0:02:08]}  h6 {[%clk 0:00:57]} 15. Bxf6+ {[%clk 0:02:02]}  gxf6 {[%clk 0:00:58]} 16. d5 {[%clk 0:01:44]}  Bf5 {[%clk 0:00:15]} 17. d6+ {[%clk 0:01:32]}  Qxd6 {[%clk 0:00:11]} 18. Qxb8 {[%clk 0:01:32]}  Bg7 {[%clk 0:00:08]} 19. Qb7 {[%clk 0:01:27]}  Ne5 {[%clk 0:00:08]} 20. Nd5+ {[%clk 0:01:20]}  Kd8 {[%clk 0:00:05]} 21. Qa8+ {[%clk 0:01:13]}  Bc8 {[%clk 0:00:05]} 22. Rad1 {[%clk 0:01:09]}  Nd7 {[%clk 0:00:02]} 23. Nb6 {[%clk 0:01:03]}  cxb6 {[%clk 0:00:01]} 24. Rxd6 {[%clk 0:01:03]}  Kc7 {[%clk 0:00:00]} 25. Rc6+ {[%clk 0:01:02]} 1-0


[Site "https://www.chess.com"]